Cogmind - Beta 14 @@@ ROGUE MODE // 2024.11.04 @ 12:11:32 Player: Eddie Result: Destroyed by as-75935 with Assembled Heavy Rifle Performance ------------- Evolutions (0) 0 Regions Visited (4) 800 Robots Destroyed (12) 60 Value Destroyed (357) 357 Prototype IDs (0) 0 Alien Tech Used (0) 0 Bonus (0) 0 TOTAL SCORE: 1217 Bonus ------- None Cogmind --------- Core Integrity 0/250 Matter 290/300 Energy 160/160 System Corruption 2% Temperature Cool (0) Movement Walking (260) Ox2 Location -9/Mines Parts ------- > --- POWER (1) -------- Light Nuclear Core > --- PROPULSION (2) --- Aluminum Leg Aluminum Leg > --- UTILITY (2) ------ Improved Heat Sink High-capacity Storage Unit > --- WEAPON (2) ------- Plasma Flamer > --- INVENTORY (20) --- Ion Engine Light Treads Small Storage Unit Beam Cannon Assault Rifle Peak State ------------ > --- POWER ------------ Light Nuclear Core > --- PROPULSION ------- Aluminum Leg Aluminum Leg > --- UTILITY ---------- Improved Heat Sink Small Storage Unit > --- WEAPON ----------- Plasma Flamer > --- INVENTORY -------- Ion Engine Light Treads Beam Cannon Assault Rifle [Rating: 14] Favorites ----------- Power Ion Engine Engine Ion Engine Power Core Light Nuclear Core Propulsion Light Treads Treads Light Treads Leg Aluminum Leg Utility Small Storage Unit Device Improved Heat Sink Storage Small Storage Unit Weapon Light Assault Rifle Ballistic Gun Light Assault Rifle Special Weapon Plasma Flamer Build | -11 -10 -10 -10 -9 ------- Run | Yrd Mat Min Exi Min Slots Evolved . | . . . . . Power . | . . . . . Propulsion . | . . . . . Utility . | . . . . . Weapon . | . . . . . Parts Attached 13 | 7 1 . . 5 Power 3 | 2 . . . 1 Engine 2 | 2 . . . . Core 1 | . . . . 1 Reactor . | . . . . . Propulsion 4 | 2 . . . 2 Treads 2 | 2 . . . . Leg 2 | . . . . 2 Wheel . | . . . . . Hover . | . . . . . Flight . | . . . . . Utility 3 | 1 1 . . 1 Device 1 | . 1 . . . Storage 2 | 1 . . . 1 Processor . | . . . . . Hackware . | . . . . . Protection . | . . . . . Artifact . | . . . . . Weapon 3 | 2 . . . 1 Energy Gun . | . . . . . Energy Cannon . | . . . . . Ballistic Gun 2 | 2 . . . . Ballistic Cannon . | . . . . . Launcher . | . . . . . Special Weapon 1 | . . . . 1 Impact Weapon . | . . . . . Slashing Weapon . | . . . . . Piercing Weapon . | . . . . . Special Melee Weapon . | . . . . . Unidentified Prototypes . | . . . . . Parts Lost 5 | . . . . 5 Power 1 | . . . . 1 Propulsion 2 | . . . . 2 Utility . | . . . . . Weapon 2 | . . . . 2 Highest Loss Streak 5 | . . . . 5 To Critical Strikes . | . . . . . Average Slot Usage (%) 94 | . 87 100 100 82 Engine 12 | . 14 14 14 . Core 1 | . . . . 12 Treads 25 | . 28 28 28 1 Leg 2 | . . . . 25 Device 10 | . 2 14 14 14 Storage 14 | . 14 14 14 14 Ballistic Gun 25 | . 28 28 28 1 Special Weapon 1 | . . . . 12 Peak Build Rating 14 | 6 10 10 10 14 Average Rating 9 | 3 6 10 10 13 On Entrance 7 | . 6 10 10 10 Naked Turns . | . . . . . Heaviest Build 49 | 13 14 14 14 49 Greatest Support 40 | 40 40 40 40 40 Greatest Overweight (x) 2 | . . . . 2 Average Overweight (x) . | . . . . . Largest Inventory Capacity 20 | 8 8 8 8 20 Average Capacity 8 | 7 8 8 8 14 Most Carried 8 | 2 8 8 8 8 Average Carried 6 | 1 3 8 8 5 Final Capacity 20 | 8 8 8 8 20 Final Carried 8 | 2 8 8 8 5 Class Distribution -------------------- 90% | Mutant 9% | Scavenger-Mutant Dominant Class ---------------- Mutant | -10/Materials Mutant | -10/Mines Mutant | -10/Exiles Scavenger-Mutant | -9/Mines Resources | -11 -10 -10 -10 -9 ----------- Run | Yrd Mat Min Exi Min Matter Collected 516 | 212 111 48 . 145 Remotely . | . . . . . Salvage Created 327 | . 158 91 . 78 Parts 20 | . 12 5 . 3 Haulers Intercepted . | . . . . . Recyclers Shooed . | . . . . . Parts Field Recycled . | . . . . . Retrieved Matter . | . . . . . Parts Self-Destructed . | . . . . . Prevented . | . . . . . Kills | -11 -10 -10 -10 -9 ------- Run | Yrd Mat Min Exi Min Combat Hostiles Destroyed 11 | . 6 2 . 3 Guns 9 | . 6 2 . 1 Cannons 1 | . . . . 1 Classes Destroyed 3 | . 3 . . . Operator 1 | . 1 . . . Swarmer 3 | . 3 . . . Grunt 8 | . 3 2 . 3 Best Kill Streak 3 | . 3 2 . 2 Combat Bots Only 3 | . 3 2 . 2 Max Kills in Single Turn 1 | . 1 1 . 1 Gunslinging . | . . . . . Exploded . | . . . . . Melee . | . . . . . Uniques/NPCs Destroyed . | . . . . . Combat | -11 -10 -10 -10 -9 -------- Run | Yrd Mat Min Exi Min Hostile Shots Fired 104 | . 44 14 . 46 Missed 26 | . 13 5 . 8 Damage Taken 983 | . 325 112 . 546 Core 262 | . 46 26 . 190 Absorbed by Shields . | . . . . . Core Remaining (%) 100 | 100 . . . . Volleys Fired 58 | . 35 5 . 18 Largest 2 | . 2 2 . 2 Hottest 100 | . 40 40 . 100 Shots Fired 100 | . 69 11 . 20 Gun 93 | . 69 11 . 13 Cannon . | . . . . . Launcher . | . . . . . Special 7 | . . . . 7 Kinetic 93 | . 69 11 . 13 Thermal 7 | . . . . 7 Explosive . | . . . . . Electromagnetic . | . . . . . Robot Hit Streak 10 | . 10 7 . 7 Robot Miss Streak 3 | . 2 1 . 3 Penetration Max . | . . . . . Secondary Targets 1 | . . . . 1 Max Gunslinging Chain 1 | . . . . 1 Shots Hit Robots 64 | . 42 8 . 14 Core Hits 28 | . 16 5 . 7 Critical Kills . | . . . . . Critical Parts Destroyed . | . . . . . Critical Strikes . | . . . . . Melee Attacks . | . . . . . Impact . | . . . . . Slashing . | . . . . . Piercing . | . . . . . Sneak Attacks . | . . . . . Combat Hostiles . | . . . . . Follow-up Attacks . | . . . . . Damage Inflicted 683 | . 422 102 . 159 Guns 593 | . 422 102 . 69 Cannons . | . . . . . Explosions . | . . . . . Melee . | . . . . . Ramming . | . . . . . Kinetic 593 | . 422 102 . 69 Thermal 90 | . . . . 90 Explosive . | . . . . . Electromagnetic . | . . . . . Impact . | . . . . . Slashing . | . . . . . Piercing . | . . . . . Highest Corruption 2 | . 2 2 2 2 Average Corruption 2 | . 2 2 2 2 Corruption Purged . | . . . . . Corruption Blocked . | . . . . . Effects 24 | . 5 11 6 2 Message Errors 5 | . . 5 . . Matter Fused 7 | . 1 4 1 1 Heat Flow Errors 1 | . . . 1 . Energy Discharges 4 | . 1 1 2 . Data Loss (minor) 3 | . 1 . 1 1 Data Loss (major) 2 | . 1 . 1 . Misfires 1 | . . 1 . . Weapon Failures 1 | . 1 . . . Overload Shots . | . . . . . Overflow Damage . | . . . . . Projectiles . | . . . . . Explosions . | . . . . . Melee . | . . . . . Knockbacks . | . . . . . Impact . | . . . . . Kinetic . | . . . . . Secondary . | . . . . . Self-Inflicted Damage . | . . . . . Shots . | . . . . . Rammed . | . . . . . Targets Rammed . | . . . . . Kicked . | . . . . . Crushed . | . . . . . Highest Temperature 222 | . 9 . 166 222 Average Temperature 86 | . 6 . 83 118 Received Heat Transfer 435 | . 99 57 . 279 Siege Activations . | . . . . . Robots Corrupted . | . . . . . Combat Hostiles . | . . . . . Parts Fried . | . . . . . Impact Corruptions . | . . . . . Robots Melted 1 | . . . . 1 Combat Hostiles 1 | . . . . 1 Parts Melted 1 | . . . . 1 Heat Transferred 560 | . . . . 560 Parts Sabotaged . | . . . . . Parts Stolen . | . . . . . Parts Stripped . | . . . . . Power Chain Reactions . | . . . . . Alert | -11 -10 -10 -10 -9 ------- Run | Yrd Mat Min Exi Min Peak Influence 156 | . 156 50 . 65 Initial 45 | . . 45 . . Average 37 | . 57 23 . 41 Maximum Alert Level . | . . . . . Low Security (%) 100 | 100 100 100 . 100 Level 1 . | . . . . . Level 2 . | . . . . . Level 3 . | . . . . . Level 4 . | . . . . . Level 5 . | . . . . . High Security . | . . . . . Max Security . | . . . . . Squads Dispatched . | . . . . . Investigation . | . . . . . Extermination . | . . . . . Reinforcement . | . . . . . Assault . | . . . . . Garrison . | . . . . . Intercept . | . . . . . Searches Triggered . | . . . . . Construction Impeded . | . . . . . Haulers Reinforced . | . . . . . Active Scanning Responses . | . . . . . Cargo Convoy Interrupts . | . . . . . Stealth | -11 -10 -10 -10 -9 --------- Run | Yrd Mat Min Exi Min Distress Signals 1 | . 1 . . . Communications Jammed . | . . . . . Distress Signals . | . . . . . Times Spotted 27 | . 14 3 . 10 Peak Tracking Total 4 | . 4 3 . 3 Tactical Retreats 1 | . 1 . . . Traps | -11 -10 -10 -10 -9 ------- Run | Yrd Mat Min Exi Min Traps Triggered 1 | . 1 . . . Indirectly . | . . . . . Trap Hack Attempts . | . . . . . Triggered . | . . . . . Disarmed . | . . . . . Reprogrammed . | . . . . . Reused . | . . . . . Traps Extracted . | . . . . . Installed . | . . . . . Triggered . | . . . . . Machines | -11 -10 -10 -10 -9 ---------- Run | Yrd Mat Min Exi Min Machines Disabled . | . . . . . Max in Single Turn . | . . . . . Machines Repaired . | . . . . . Machines Dismantled . | . . . . . Machines Sabotaged . | . . . . . Overloaded Fab Kills . | . . . . . Hacking | -11 -10 -10 -10 -9 --------- Run | Yrd Mat Min Exi Min Machines Accessed 7 | . 2 1 4 . Terminals 3 | . 2 1 . . Fabricators . | . . . . . Repair Stations . | . . . . . Recycling Units . | . . . . . Scanalyzers . | . . . . . Garrison Access . | . . . . . Total Hacks 12 | . 6 2 4 . Successful 8 | . 2 2 4 . Failed 4 | . 4 . . . Catastrophic 1 | . 1 . . . Database Lockouts . | . . . . . Manual 7 | . 6 1 . . Terminals 8 | . 6 2 . . Fabricators . | . . . . . Repair Stations . | . . . . . Recycling Units . | . . . . . Scanalyzers . | . . . . . Garrison Access . | . . . . . Terminal Hacks 5 | . . 1 4 . Record 5 | . . 1 4 . Fabricator Hacks . | . . . . . Repair Station Hacks . | . . . . . Recycling Unit Hacks . | . . . . . Scanalyzer . | . . . . . Garrison Access Hacks . | . . . . . Unauthorized Hacks 3 | . 2 1 . . Terminals 3 | . 2 1 . . Botnet 3 | . 2 1 . . Fabricators . | . . . . . Repair Stations . | . . . . . Recycling Units . | . . . . . Scanalyzers . | . . . . . Garrison Access . | . . . . . Data Cores Recovered 1 | . 1 . . . Used 1 | . 1 . . . Hacking Detections 3 | . 2 1 . . Full Trace Events . | . . . . . Feedback Events . | . . . . . Feedback Blocked . | . . . . . Robot Schematics Acquired . | . . . . . Robots Built . | . . . . . Authchips . | . . . . . Time . | . . . . . Total Robot Build Rating . | . . . . . Part Schematics Acquired . | . . . . . Parts Built . | . . . . . Authchips . | . . . . . Time . | . . . . . Total Part Build Rating . | . . . . . Parts Repaired . | . . . . . Time . | . . . . . Parts Recycled . | . . . . . Recycled Matter . | . . . . . Retrieved Matter . | . . . . . Retrieved Components . | . . . . . Parts Scanalyzed . | . . . . . Part Schematics Acquired . | . . . . . Parts Damaged . | . . . . . Bothacking | -11 -10 -10 -10 -9 ------------ Run | Yrd Mat Min Exi Min Used RIF Installer . | . . . . . Robots Hacked . | . . . . . Non-combat . | . . . . . Combat . | . . . . . Robot Hacks Applied . | . . . . . Relay Couplers Released . | . . . . . Fabnet Peak Effective % . | . . . . . Robots Rewired . | . . . . . Allies Hacked . | . . . . . Hacks Repelled . | . . . . . Allies | -11 -10 -10 -10 -9 -------- Run | Yrd Mat Min Exi Min Total Allies . | . . . . . Largest Group . | . . . . . Highest-Rated Group . | . . . . . Highest-Rated Ally . | . . . . . Total Orders . | . . . . . Ally Attacks . | . . . . . Total Damage . | . . . . . Kills . | . . . . . Allies Corrupted . | . . . . . Allies Melted . | . . . . . Intel | -11 -10 -10 -10 -9 ------- Run | Yrd Mat Min Exi Min Robot Analysis Total . | . . . . . Derelict Logs Recovered 4 | . . 2 . 2 Drone Launches . | . . . . . Drone Recoveries . | . . . . . Exploration | -11 -10 -10 -10 -9 ------------- Run | Yrd Mat Min Exi Min Turns Passed 2633 | 79 662 856 756 280 Spaces Moved 1494 | 49 324 522 473 126 Core 16 | 11 . . . 5 Treads 1359 | 38 324 522 473 2 Legs 119 | . . . . 119 Wheels . | . . . . . Hover . | . . . . . Flight . | . . . . . Fastest Speed 50 | 50 160 160 160 100 Average Speed 161 | 135 160 160 160 186 Slowest Speed 260 | 160 160 160 160 260 Overloaded Moves . | . . . . . Propulsion Burnouts . | . . . . . Robots Hopped . | . . . . . Cave-ins Triggered . | . . . . . Exploration Rate (%) 52 | 5 40 84 88 43 Regions Visited 4 Branch Regions 3 Pre-discovered Areas . | . . . . . Known Exits Taken . | . . . . . Unknown Exits Taken 4 | 1 1 1 1 . Scrap Searched 2 | . . 1 . 1 Spaces Dug . | . . . . . Terrain Destroyed . | . . . . . Melee . | . . . . . Projectile . | . . . . . AOE . | . . . . . Terrain Rammed . | . . . . . Walls Destroyed . | . . . . . Machines Disabled . | . . . . . Actions | -11 -10 -10 -10 -9 --------- Run | Yrd Mat Min Exi Min Total 1622 | 59 405 537 472 149 Wait 45 | . 38 7 . . Move 1490 | 48 323 521 472 126 Hop . | . . . . . Pick Up 11 | 2 7 2 . . Fast Attach 8 | 7 1 . . . Attach 4 | . . . . 4 Detach 1 | 1 . . . . Swap 1 | . . . . 1 Drop 4 | 1 1 2 . . Fire 58 | . 35 5 . 18 Melee . | . . . . . Ram . | . . . . . Kick . | . . . . . Crush . | . . . . . Escape Stasis . | . . . . . Rewire . | . . . . . Trap . | . . . . . Miscellaneous . | . . . . . Route ------- -11/Scrapyard -10/Materials (discovered 2 exits: [*Mat] / *Min) -10/Mines (discovered 2 exits: [*Mat] / *Exi) -10/Exiles -9/Mines History --------- Turn | Location | Event 6 | -11/Scrapyard | Discovered new exit (range 15) 80 | -11/Scrapyard | Entered Materials 301 | -10/Materials | Discovered new exit (range 8) 309 | -10/Materials | Build established: Mutant 546 | -10/Materials | Discovered new exit (range 16) 742 | -10/Materials | Entered Mines 805 | -10/Mines | Learned Materials terminal intel 885 | -10/Mines | Discovered new exit (range 6) 970 | -10/Mines | A weapon hastily lodged in a ceiling crevice suddenly fell to the ground 1223 | -10/Mines | Learned Materials trap positions 1412 | -10/Mines | Deemed a non-threat by the Exiles lab entrance 1413 | -10/Mines | Discovered new exit (range 5) 1598 | -10/Mines | Entered Exiles 1598 | -10/Exiles | Found Exiles lab abandoned 1999 | -10/Exiles | Discovered new exit (range 10) 2354 | -10/Exiles | Entered Mines 2374 | -9/Mines | Core integrity fell below 50% 2384 | -9/Mines | Core integrity fell below 20% 2410 | -9/Mines | Lost 5 parts (1p2n2w) 2625 | -9/Mines | Assembled infested the area 2634 | -9/Mines | Destroyed by as-75935 with Assembled Heavy Rifle Last Messages --------------- 02416_ Acquired 10 matter. 02423_ U-05 Engineer builds a Wall. 02450_ Acquired derelict log, extracted data. Data stored: Storage entrances (x1). 02468_ Searching scrap... 02468_ Found Hcp. Storage Unit. 02468_ Found Com. Wheel. 02468_ Found 60 Matter. 02468_ Found 57 Matter. 02469_ Acquired 57 matter. 02470_ Acquired 60 matter. Having swapped a part into your inventory to attach the Hcp. Storage Unit, a marker appears next to it in your parts list, and clicking on that marker offers an easier way for mouse users to swap between the two. Doing so is the equivalent of the 'Y' option in the modal swap menu accessed via Ctrl-RMB or '/'. 02564_ Acquired derelict log, extracted data. Data stored: Storage entrances (x1). 02625_ ALERT: Infestation in the mines, dispatching Demolisher response squad. Map ----- +----------------------------------------------------+ | ????????????????????????????????????????????????? | | ????????????????????????????????????????????????? | | ????????????????????????????????????????????????? | | ????????????????????????????????????????????????? | | ????????????????????????????????????????????????? | | ????????????????????????????????????????????????? | | ????????????????????????????????????????????????? | | ????????????????????????????????????????????????? | | ????????????????????????????????????????????????? | | ????????????????????????????????????????????????? | | ??????????????????? ????????????????????????????? | | ????????????????? #???????????????????????????? | | ????????????????? #????????????????????????### | | ?????????????????? ???????????????????????## | | ?????????????????? ???????????????????????# | | ?????????????????? aa ???????????????????????# | | ???????????????????aa ??????????????????????# | | ???????????????????# ??????????????????????# | | ???????????????????#a ??????????????????????## | | ???????????????????# a ???????????????????????### | | ???????????????????# ??????????????????######## | | ???????????????????# ##????????????????# | | ???????????????????# #????????????????# | | ??????????????????## ##???????????????# ### | | ?????????????????## ################# #?# | | ?????????????????# @ t #?# | | ????????????????# ## | | ????????????????# ################## | | ????????????????# ### ##???????????????# | | ????????????????##???## ##???????????????# | | ??????????????????????####??????????????? | | ???????????????????????????????????????? ## | | ???????????????????????????????????????# #?## | | ???????????????????????????????????????# ???# | | ??????????????????????????????????????? ????## | | ??????????????????????????????????????? ?????# | | ????????????????????????????????????????? ??????? | | ????????????????????????????????????????????????? | | ????????????????????????????????????????????????? | | ????????????????????????????????????????????????? | | ????????????????????????????????????????????????? | | ????????????????????????????????????????????????? | | | | | | | | | | | | | | | | | +----------------------------------------------------+ Best States ------------- Heat Dissipation 39 Energy Generation 14 Energy Capacity 250 Matter Stores 290 Matter Capacity 300 Sight Range 16 Terrain Scan Density 10 Evasion (%) 55 Recoil Reduction 2 Item Schematics ----------------- None Robot Schematics ------------------ None Fabricated ------------ Nothing Alien Tech Used ----------------- None Achievements -------------- None Challenges ------------ None Game ------ Seed WarlordCentriumCalibrator Manual? 0 Play Time 00:14:09 Cumulative 30.2 hours Start 2024.09.04 @ 14:54:25 End 2024.11.04 @ 12:11:32 Sessions 4 Manual Loads 0 Difficulty Rogue Special Mode None Game No. 45 Rogue 45 Adventurer 0 Explorer 0 Win Type - Total 0 Types 0/0/0/0/0/0/0/0/0 Lore% 11 Gallery% 28 Achievement% 26 Wizard Run 0 Options --------- Layout 0 ASCII 0 Keyboard 1 Movement Numpad Keybinds 0 Fullscreen 2 Font 18/SmallcapsGlow Map View 76x50 Zoom Use 0% Tactical HUD 1 Map Filters NONE Filters NONE Steam 1 RUN: f2ffe2ea-1ae9-4b1d-8239-179a243495e4